bitfinex/quotes_BTCUSD_20250206
["timestamp","ask_amount","ask_price","bid_price","bid_amount"]
[1738802125567,0.12762677,96840.0,96839.0,0.0104194]
[1738802125808,0.13229838,96840.0,96839.0,0.0104194]
[1738802126016,0.01678227,96840.0,96839.0,0.0555194]
[1738802126361,0.00645472,96840.0,96839.0,0.05655184]
[1738802126937,0.00645472,96840.0,96839.0,0.05755184]
[1738802127575,0.00645472,96840.0,96839.0,0.05877612]
[1738802127745,0.00645472,96840.0,96839.0,0.05677612]
[1738802128161,0.00645472,96840.0,96839.0,0.05777612]
[1738802129139,0.00645472,96840.0,96839.0,0.05677612]
[1738802129546,0.00645472,96840.0,96839.0,0.05777612]
[1738802129760,0.00645472,96840.0,96839.0,0.05677612]
[1738802130217,0.00645472,96840.0,96839.0,0.05777612]
[1738802130438,0.00645472,96840.0,96839.0,0.05677612]
[1738802130635,0.00645472,96840.0,96839.0,0.05777612]
[1738802130997,0.00645472,96840.0,96839.0,0.05677612]
[1738802131242,0.00645472,96840.0,96839.0,0.05674368]
[1738802132581,0.00645472,96840.0,96839.0,0.05574368]
[1738802132755,0.00645472,96840.0,96839.0,0.05674368]
[1738802132958,0.00645472,96840.0,96839.0,0.21063968]
[1738802133543,0.00272712,96844.0,96843.0,0.385989]
[1738802133971,0.09261693,96866.0,96859.0,0.154864]
[1738802134209,0.0086584,96860.0,96859.0,0.1558963]
[1738802134337,0.013353,96860.0,96859.0,0.1558963]
[1738802134541,0.013353,96860.0,96859.0,0.154864]
[1738802134752,0.0086584,96860.0,96859.0,0.154864]
[1738802136618,0.0106584,96860.0,96859.0,0.154864]
[1738802137032,0.0106584,96860.0,96859.0,0.16522528]
[1738802137454,0.0022184,96860.0,96859.0,0.36979581]
[1738802137662,0.09261693,96876.0,96875.0,0.235738]
[1738802137866,0.09733035,96876.0,96875.0,0.235738]
[1738802138092,0.10577035,96876.0,96875.0,0.235738]
[1738802138303,0.10105693,96876.0,96875.0,0.235738]
[1738802138926,0.10105693,96876.0,96875.0,0.32138926]
[1738802139129,0.09761693,96876.0,96875.0,0.32238926]
[1738802139998,0.09272373,96876.0,96875.0,0.23587766]
[1738802140413,0.09272373,96876.0,96875.0,0.23687766]
[1738802140962,0.0001068,96876.0,96875.0,0.24723189]
[1738802141323,0.0001068,96876.0,96875.0,0.39723189]
[1738802141602,0.0001068,96876.0,96875.0,0.49973554]
[1738802143553,0.0001068,96876.0,96875.0,0.39723189]
[1738802145303,0.0001068,96876.0,96875.0,0.71753189]
[1738802145488,0.0009883,96895.0,96886.0,0.154821]
[1738802145697,0.10084301,96892.0,96891.0,0.154813]
[1738802145920,0.10084301,96892.0,96891.0,0.1991306]
[1738802147130,0.10084301,96892.0,96891.0,0.2001306]
[1738802149752,0.00844,96900.0,96891.0,0.0453176]
[1738802149873,0.00844,96900.0,96892.0,0.15584283]
[1738802150074,0.00844,96900.0,96892.0,0.25834648]
[1738802150308,0.0012992,96893.0,96892.0,0.25731465]
[1738802151676,0.0012992,96893.0,96892.0,0.25831465]
[1738802151889,0.14940285,96893.0,96892.0,0.001]
[1738802152034,0.25784285,96893.0,96892.0,0.001]
[1738802152193,0.26263045,96893.0,96892.0,0.001]
[1738802152393,0.26263045,96893.0,96887.0,0.206425]
[1738802152608,0.10250365,96892.0,96887.0,0.154818]
[1738802152807,0.10250365,96892.0,96886.0,0.01307641]
[1738802153003,0.10250365,96892.0,96862.0,0.3203]
[1738802153004,0.1,96876.0,96871.0,0.154844]
[1738802153215,0.20731046,96876.0,96863.0,0.154856]
[1738802153427,0.20731046,96876.0,96871.0,0.01312164]
[1738802153632,0.48111046,96876.0,96849.0,0.206505]
[1738802153847,0.48111046,96876.0,96844.0,0.02063702]
[1738802154071,0.48111046,96876.0,96850.0,0.14312136]
[1738802154246,0.48111046,96876.0,96858.0,0.01303645]
[1738802154446,0.48955046,96876.0,96859.0,0.00103242]
[1738802154653,0.48955046,96876.0,96858.0,0.16790145]
[1738802154854,0.49600289,96876.0,96858.0,0.01303645]
[1738802155992,0.1,96861.0,96858.0,0.01303645]
[1738802156322,0.10608912,96860.0,96859.0,0.154863]
[1738802156670,0.11254155,96860.0,96859.0,0.154863]
[1738802157288,0.12098155,96860.0,96859.0,0.154863]
[1738802157496,0.12214868,96860.0,96859.0,0.154863]
[1738802158123,0.12214868,96860.0,96858.0,0.00113974]
[1738802158321,0.1209605,96860.0,96858.0,0.00113974]
[1738802158538,0.12215215,96860.0,96858.0,0.00013974]
[1738802158741,0.10250365,96859.0,96858.0,0.00013974]
[1738802159116,0.10607089,96859.0,96858.0,0.00013974]
[1738802159497,0.18247089,96859.0,96858.0,0.00013974]
[1738802159699,0.19925053,96859.0,96858.0,0.00013974]
[1738802161565,0.19925053,96859.0,96841.0,0.206522]
[1738802161566,0.1,96849.0,96843.0,0.154888]
[1738802161797,0.10250365,96848.0,96843.0,0.154888]
[1738802162013,0.10606516,96848.0,96844.0,0.154887]
[1738802162295,0.10606516,96848.0,96836.0,0.206533]
[1738802162496,0.26094716,96848.0,96834.0,0.154903]
[1738802162695,0.10250365,96844.0,96843.0,0.001]
[1738802162896,0.10601796,96844.0,96838.0,0.154897]
[1738802163080,0.10601796,96844.0,96836.0,0.1549]
[1738802163441,0.1227976,96844.0,96836.0,0.1549]
[1738802163649,0.12396072,96844.0,96836.0,0.1549]
[1738802163859,0.13179137,96844.0,96843.0,0.001]
[1738802164066,0.13296073,96844.0,96843.0,0.001]
[1738802164280,0.11618109,96844.0,96843.0,0.001]
[1738802164503,0.1150106,96844.0,96843.0,0.001]
[1738802164971,0.1150106,96844.0,96843.0,0.00122407]
[1738802165211,0.1060106,96844.0,96843.0,0.00022407]
[1738802165417,0.1825106,96844.0,96843.0,0.00022407]
[1738802165590,0.20046454,96844.0,96843.0,0.00022407]
[1738802165804,0.23123474,96844.0,96843.0,0.00022407]
[1738802166136,0.23539812,96844.0,96843.0,0.00022407]
[1738802166352,0.23239812,96844.0,96843.0,0.00022407]
[1738802166698,0.38611736,96844.0,96843.0,0.00022407]
[1738802166887,0.39511736,96844.0,96843.0,0.00122407]
[1738802167501,0.56811736,96844.0,96843.0,0.00122407]
[1738802167702,0.69917609,96844.0,96843.0,0.00122407]
[1738802167880,0.70800689,96844.0,96843.0,0.00122407]
[1738802168088,0.7091681,96844.0,96843.0,0.00122407]
[1738802168306,0.7001681,96844.0,96843.0,0.00022407]
[1738802168513,0.6941681,96844.0,96843.0,0.00022407]
[1738802168846,0.25491,96830.0,96818.0,0.08291659]
[1738802169008,0.38041365,96830.0,96818.0,0.08291659]
[1738802169229,0.38390486,96830.0,96818.0,0.08291659]
[1738802169550,0.20713823,96830.0,96811.0,0.01272872]
[1738802169743,0.20713823,96830.0,96817.0,0.154929]
[1738802170137,0.20713823,96830.0,96820.0,0.154925]
[1738802170344,0.21113823,96830.0,96821.0,0.154925]
[1738802170541,0.21113823,96830.0,96823.0,0.01324857]
[1738802170745,0.21759375,96830.0,96823.0,0.01324857]
[1738802171223,0.2164351,96830.0,96823.0,0.01324857]
[1738802171476,0.21758935,96830.0,96823.0,0.01324857]
[1738802172011,0.21113383,96830.0,96823.0,0.01324857]
[1738802172208,0.21957383,96830.0,96823.0,0.01324857]
[1738802172565,0.21957383,96830.0,96826.0,0.154916]
[1738802173061,0.21557383,96830.0,96823.0,0.21980957]
[1738802173260,0.21557383,96830.0,96825.0,0.154917]
[1738802173492,0.21657383,96830.0,96825.0,0.154917]
[1738802173685,0.21657383,96830.0,96823.0,0.16816857]
[1738802173836,0.21657383,96830.0,96824.0,0.154919]
[1738802174263,0.21539804,96830.0,96823.0,0.01324857]
[1738802174474,0.21654945,96830.0,96823.0,0.01324857]
[1738802174817,0.37045945,96830.0,96810.0,0.00022428]
[1738802175147,0.37245945,96830.0,96811.0,0.154939]
[1738802175352,0.37045945,96830.0,96811.0,0.154939]
[1738802175550,0.37245945,96830.0,96812.0,0.154938]
[1738802175768,0.37045945,96830.0,96816.0,0.01268613]
[1738802175974,0.28250945,96830.0,96816.0,0.09560272]
[1738802176220,0.11406288,96830.0,96828.0,0.154912]
[1738802176441,0.0927375,96859.0,96840.0,0.206525]
[1738802176653,0.00844,96843.0,96841.0,0.15592542]
[1738802176821,0.00844,96843.0,96841.0,0.154893]
[1738802177012,0.11094365,96848.0,96847.0,0.154883]
[1738802177327,0.10250365,96848.0,96847.0,0.154883]
[1738802177472,0.11094365,96848.0,96847.0,0.154883]
[1738802178791,0.11094365,96848.0,96847.0,0.156883]
[1738802178940,0.11094365,96848.0,96847.0,0.1697528]
[1738802179568,0.11094365,96848.0,96847.0,0.1677528]
[1738802180925,0.11094365,96848.0,96847.0,0.1697528]
[1738802181880,0.00022737,96859.0,96858.0,0.154865]
[1738802182090,0.11117102,96859.0,96858.0,0.154865]
[1738802182338,0.00866737,96859.0,96858.0,0.15589733]
[1738802183572,0.00022737,96859.0,96858.0,0.20359733]
[1738802183797,0.00022737,96859.0,96858.0,0.27252333]
[1738802183993,0.00022737,96859.0,96858.0,0.28516208]
[1738802184230,0.00022737,96859.0,96858.0,0.28716208]
[1738802184996,0.00022737,96859.0,96858.0,0.21520375]
[1738802185176,0.00022737,96859.0,96858.0,0.21720375]
[1738802186003,0.00022737,96859.0,96858.0,0.36720375]
[1738802186459,0.0094415,96890.0,96889.0,0.154816]
[1738802186660,0.11140982,96890.0,96889.0,0.154816]
[1738802187946,0.11140982,96890.0,96889.0,0.156816]
[1738802189857,0.11140982,96890.0,96889.0,0.16952719]
[1738802190013,0.11140982,96890.0,96889.0,0.002]
[1738802190403,0.11151672,96890.0,96889.0,0.002]
[1738802190895,0.11151672,96890.0,96889.0,0.156816]
[1738802191159,0.11151672,96890.0,96889.0,0.154816]
[1738802191569,0.11151672,96890.0,96889.0,0.156816]
[1738802191796,0.11151672,96890.0,96889.0,0.154816]
[1738802191948,0.11796805,96890.0,96889.0,0.154816]
[1738802192156,0.11796805,96890.0,96889.0,0.155816]
[1738802193177,0.11796805,96890.0,96889.0,0.001]
[1738802193392,0.1,96875.0,96874.0,0.15484]
[1738802193590,0.20250365,96875.0,96874.0,0.15484]
[1738802194976,0.10250365,96875.0,96874.0,0.15484]
[1738802195183,0.10250365,96875.0,96874.0,0.15684]
[1738802195386,0.11094365,96875.0,96874.0,0.15684]
[1738802196133,0.00057307,96890.0,96889.0,0.154816]
[1738802196272,0.11151672,96890.0,96889.0,0.154816]
[1738802197460,0.1,96879.0,96878.0,0.154833]
[1738802197700,0.20250365,96879.0,96878.0,0.154833]
[1738802198704,0.20250365,96879.0,96878.0,0.156833]
[1738802199935,0.10250365,96879.0,96878.0,0.156833]
[1738802200504,0.11094365,96879.0,96878.0,0.156833]
[1738802200848,0.11094365,96879.0,96878.0,0.154833]
[1738802201152,0.11094365,96879.0,96878.0,0.156833]
[1738802201359,0.11094365,96879.0,96878.0,0.23770894]
[1738802201587,0.11094365,96879.0,96878.0,0.154833]
[1738802201983,0.11094365,96879.0,96878.0,0.156833]
[1738802202172,0.11094365,96879.0,96878.0,0.154833]
[1738802202619,0.11094365,96879.0,96878.0,0.156833]
[1738802202978,0.00057307,96890.0,96889.0,0.154816]
[1738802203179,0.11151672,96890.0,96889.0,0.154816]
[1738802204696,0.11151672,96890.0,96889.0,0.156816]
[1738802204898,0.11151672,96890.0,96889.0,0.154816]
[1738802205237,0.11151672,96890.0,96889.0,0.156816]
[1738802205559,0.10307672,96890.0,96889.0,0.154816]
[1738802205755,0.11151672,96890.0,96889.0,0.156816]
[1738802206336,0.10307672,96890.0,96889.0,0.156816]
[1738802206514,0.11151672,96890.0,96889.0,0.156816]
[1738802207786,0.11151672,96890.0,96889.0,0.154816]
[1738802208063,0.11151672,96890.0,96889.0,0.156816]
[1738802208273,0.11151672,96890.0,96889.0,0.154816]
[1738802208419,0.11151672,96890.0,96889.0,0.156816]
[1738802208619,0.11151672,96890.0,96889.0,0.16926638]
[1738802208819,0.11151672,96890.0,96889.0,0.16726638]
[1738802209138,0.11151672,96890.0,96889.0,0.16926638]
[1738802211486,0.00057307,96890.0,96889.0,0.1702984]
[1738802211796,0.00057307,96890.0,96889.0,0.26997521]
[1738802212145,0.00057307,96890.0,96889.0,0.26894319]
[1738802214871,0.00057307,96890.0,96889.0,0.18998455]
[1738802215073,0.00057307,96890.0,96889.0,0.19101647]
[1738802216183,0.00057307,96890.0,96889.0,0.18998455]
[1738802217977,0.00057307,96890.0,96889.0,0.19101648]
[1738802219478,0.00057307,96890.0,96889.0,0.18998455]
[1738802219619,0.10307672,96890.0,96889.0,0.18998455]
[1738802220299,0.10307672,96890.0,96889.0,0.18798455]
[1738802220691,0.10307672,96890.0,96889.0,0.16926638]
[1738802220839,0.10307672,96890.0,96889.0,0.156816]
[1738802221055,0.10307672,96890.0,96889.0,0.154816]
[1738802221257,0.10307672,96890.0,96889.0,0.156816]
[1738802221443,0.10952822,96890.0,96889.0,0.156816]
[1738802222016,0.10952822,96890.0,96889.0,0.154816]
[1738802222277,0.10952822,96890.0,96889.0,0.155816]
[1738802222838,0.10952822,96890.0,96889.0,0.001]
[1738802223294,0.10952822,96890.0,96889.0,0.155816]
[1738802223530,0.26434222,96890.0,96889.0,0.001]
[1738802223646,0.10952822,96890.0,96889.0,0.001]
[1738802223879,0.10307672,96890.0,96889.0,0.001]
[1738802224084,0.25789072,96890.0,96889.0,0.001]
[1738802224689,0.1,96871.0,96870.0,0.154846]
[1738802224947,0.1,96860.0,96859.0,0.00022428]
[1738802225149,0.20250365,96860.0,96859.0,0.15508828]
[1738802226165,0.20257583,96860.0,96859.0,0.15508828]
[1738802226712,0.20902935,96860.0,96859.0,0.15508828]
[1738802227871,0.20902935,96860.0,96859.0,0.16980556]
[1738802228258,0.20902935,96860.0,96859.0,0.21926768]
[1738802228463,0.0065257,96860.0,96859.0,0.30026768]
[1738802228664,0.0065257,96860.0,96859.0,0.24880556]
[1738802228865,0.0065257,96860.0,96859.0,0.25080556]
[1738802229227,0.0065257,96860.0,96859.0,0.24880556]
[1738802229431,7.218e-05,96860.0,96859.0,0.24880556]
[1738802229939,7.218e-05,96860.0,96859.0,0.29790556]
[1738802230614,7.218e-05,96860.0,96859.0,0.29990556]
[1738802230819,0.09261693,96873.0,96872.0,0.154843]
[1738802231025,0.08413694,96873.0,96872.0,0.235243]
[1738802232237,0.08413694,96873.0,96872.0,0.237243]
[1738802232517,0.00844,96882.0,96881.0,0.154829]
[1738802233441,0.00844,96882.0,96881.0,0.15586103]
[1738802233575,0.00844,96882.0,96881.0,0.21273593]
[1738802233772,0.00844,96882.0,96881.0,0.2117039]
[1738802234580,0.00844,96882.0,96881.0,0.2137039]
[1738802234983,0.07569695,96889.0,96888.0,0.154817]
[1738802235188,0.0009852,96901.0,96900.0,0.154798]
[1738802235387,0.0011083,96920.0,96905.0,0.15479]
[1738802235685,0.0011083,96920.0,96916.0,0.154773]
[1738802236075,0.0011083,96920.0,96916.0,0.15580463]
[1738802236276,0.0001068,96920.0,96916.0,0.15580463]
[1738802236483,0.00244341,96917.0,96916.0,0.15580463]
[1738802237471,0.00244341,96917.0,96916.0,0.154773]
[1738802237652,0.00344341,96917.0,96916.0,0.16731929]
[1738802237852,0.00344341,96917.0,96916.0,0.22645981]
[1738802238046,0.00344341,96917.0,96916.0,0.22542818]
[1738802239008,0.00344341,96917.0,96916.0,0.16731929]
[1738802240147,0.00344341,96917.0,96916.0,0.25005093]
[1738802240351,0.00344341,96917.0,96916.0,0.27004772]
[1738802240843,0.00244341,96917.0,96916.0,0.27004772]
[1738802241072,0.00244341,96917.0,96916.0,0.27204772]
[1738802244698,0.10494706,96917.0,96916.0,0.19034772]
[1738802245305,0.20494706,96917.0,96916.0,0.002]
[1738802245511,0.28704706,96917.0,96916.0,0.002]
[1738802246030,0.43704706,96917.0,96916.0,0.002]
[1738802246450,0.1,96904.0,96903.0,0.01267304]
[1738802246652,0.1,96893.0,96889.0,0.154815]
[1738802246872,0.1,96880.0,96879.0,0.17552038]
[1738802247084,0.20250365,96880.0,96879.0,0.02068838]
[1738802247313,0.20250365,96880.0,96879.0,0.17552038]
[1738802247643,0.20250365,96880.0,96879.0,0.154832]
[1738802248279,0.20250365,96880.0,96879.0,0.15497179]
[1738802249503,0.20250365,96880.0,96879.0,0.15697179]
[1738802249727,0.20250365,96880.0,96879.0,0.15497179]
[1738802249934,0.20250365,96880.0,96879.0,0.15519607]
[1738802250045,0.20250365,96880.0,96879.0,0.15719607]
[1738802250406,0.20250365,96880.0,96879.0,0.15519607]
[1738802250863,0.20250365,96880.0,96879.0,0.15719607]
[1738802251033,0.20250365,96880.0,96879.0,0.15519607]
[1738802252067,0.21094365,96880.0,96879.0,0.15519607]
[1738802252851,0.21094365,96880.0,96879.0,0.15719607]
[1738802253058,0.11094365,96880.0,96879.0,0.15519607]
[1738802253509,0.09326126,96910.0,96880.0,0.20644]
[1738802253510,0.1,96905.0,96880.0,0.20644]
[1738802253725,0.10250365,96902.0,96901.0,0.154797]
[1738802255493,0.11094365,96902.0,96901.0,0.154797]
[1738802256001,0.11594365,96902.0,96901.0,0.155797]
[1738802256180,0.11594365,96902.0,96901.0,0.154797]
[1738802256377,0.11577775,96902.0,96901.0,0.154797]
[1738802256588,0.12077775,96902.0,96901.0,0.155797]
[1738802258323,0.12077775,96902.0,96901.0,0.16817904]
[1738802259034,0.22077775,96902.0,96901.0,0.01338204]
[1738802259242,0.22077775,96902.0,96901.0,0.001]
[1738802261779,0.37557275,96902.0,96901.0,0.001]
[1738802262262,0.67397275,96902.0,96901.0,0.001]
[1738802263359,0.67397275,96902.0,96883.0,0.154825]
[1738802263360,0.1,96884.0,96883.0,0.154825]
[1738802263580,0.20250365,96884.0,96883.0,0.154825]
[1738802263993,0.20250365,96884.0,96881.0,0.154827]
[1738802264264,0.10250365,96883.0,96881.0,0.154827]
[1738802264461,0.10250365,96883.0,96879.0,0.00036407]
[1738802264669,0.10250365,96880.0,96879.0,0.00036407]
[1738802265222,0.18090365,96880.0,96879.0,0.00036407]
[1738802265428,0.39940365,96880.0,96879.0,0.00036407]
[1738802265627,0.70940365,96880.0,96879.0,0.00036407]
[1738802266236,0.71140365,96880.0,96879.0,0.00036407]
[1738802266433,0.72332197,96880.0,96879.0,0.00036407]
[1738802266646,0.72132197,96880.0,96879.0,0.00036407]
[1738802266844,0.73032197,96880.0,96879.0,0.00036407]
[1738802267672,0.1,96860.0,96859.0,0.00022428]
[1738802267875,0.21094365,96860.0,96859.0,0.00036424]
[1738802268404,0.2173987,96860.0,96859.0,0.00036424]
[1738802269350,0.2193987,96860.0,96859.0,0.00036424]
[1738802271073,0.1193987,96860.0,96859.0,0.00036424]
[1738802271280,0.1193987,96860.0,96859.0,0.01233877]
[1738802272236,0.1173987,96860.0,96859.0,0.01233877]
[1738802274950,0.1089587,96860.0,96859.0,0.01233877]
[1738802275163,0.1173987,96860.0,96859.0,0.01233877]
[1738802278410,0.1089587,96860.0,96859.0,0.01233877]
[1738802278636,0.01489505,96860.0,96859.0,0.01233877]
[1738802279613,0.001977,96917.0,96882.0,0.0495]
[1738802279845,0.001977,96917.0,96916.0,0.154773]
[1738802280039,0.0001068,96920.0,96919.0,0.154768]
[1738802280596,0.0085468,96920.0,96919.0,0.154768]
[1738802281001,0.11105045,96920.0,96919.0,0.154768]
[1738802281358,0.11151695,96920.0,96919.0,0.154768]
[1738802281624,0.10307695,96920.0,96919.0,0.154768]
[1738802281801,0.11251695,96920.0,96919.0,0.154768]
[1738802283468,0.1,96909.0,96908.0,0.154785]
[1738802283671,0.20250365,96909.0,96908.0,0.154785]
[1738802285096,0.10250365,96909.0,96908.0,0.154785]
[1738802285432,0.0005733,96920.0,96919.0,0.154768]
[1738802285634,0.11147695,96920.0,96919.0,0.154768]
[1738802288995,0.10307695,96920.0,96919.0,0.22325402]
[1738802289216,0.0005733,96920.0,96919.0,0.29865402]
[1738802290227,0.0005733,96920.0,96919.0,0.44865402]
[1738802291180,0.0084,96948.0,96942.0,0.154731]
[1738802292138,0.10261045,96943.0,96942.0,0.154731]
[1738802292743,0.20261045,96943.0,96942.0,0.154731]
[1738802293368,1.70261045,96943.0,96942.0,0.154731]
[1738802293692,0.1,96933.0,96932.0,0.154747]
[1738802293901,0.20250365,96933.0,96932.0,0.154747]
[1738802295146,0.10250365,96933.0,96932.0,0.154747]
[1738802295589,0.10250365,96933.0,96932.0,0.156747]
[1738802296765,0.10250365,96933.0,96932.0,0.154747]
[1738802297128,0.10250365,96933.0,96932.0,0.156747]
[1738802297468,0.10250365,96933.0,96932.0,0.154747]
[1738802297649,0.10250365,96933.0,96932.0,0.156747]
[1738802300974,0.20250365,96933.0,96932.0,0.156747]
[1738802301954,0.206288,96952.0,96932.0,0.156747]
[1738802301955,0.0249335,96979.0,96932.0,0.77280365]
[1738802302155,0.0001068,96977.0,96971.0,0.154685]
[1738802302380,0.0001068,96977.0,96976.0,0.154677]
[1738802303419,0.0085068,96977.0,96976.0,0.154677]
[1738802303561,0.0001068,96977.0,96976.0,0.15481696]
[1738802303761,0.0085068,96977.0,96976.0,0.15681696]
[1738802304898,0.0085068,96977.0,96976.0,0.16872948]
[1738802306196,0.11101045,96977.0,96976.0,0.16872948]
[1738802307154,0.11101045,96977.0,96976.0,0.16672948]
[1738802307474,0.11101045,96977.0,96976.0,0.15681696]
[1738802308153,0.11745604,96977.0,96976.0,0.15681696]
[1738802311547,0.21745604,96977.0,96976.0,0.00213996]
[1738802312266,0.37213104,96977.0,96976.0,0.00213996]
[1738802312870,0.38213104,96977.0,96976.0,0.00013996]
[1738802313084,0.40513104,96977.0,96976.0,0.00113996]
[1738802313287,0.40513104,96977.0,96976.0,0.00013996]
[1738802313713,0.41413104,96977.0,96976.0,0.00013996]
[1738802314529,0.1,96958.0,96953.0,0.154713]
[1738802314729,0.10250365,96955.0,96954.0,0.154712]
[1738802315151,0.10250365,96955.0,96952.0,0.154714]
[1738802315356,0.10250365,96955.0,96951.0,0.00014001]
[1738802315357,0.10250365,96953.0,96951.0,0.00014001]
[1738802315608,0.10250365,96952.0,96951.0,0.00014001]
[1738802315975,0.10894924,96952.0,96951.0,0.00014001]
[1738802316956,0.10894924,96952.0,96951.0,0.00114001]
[1738802317156,0.10894924,96952.0,96951.0,0.00014001]
[1738802317357,0.10894924,96952.0,96951.0,0.00214001]
[1738802317804,0.10894924,96952.0,96951.0,0.00014001]
[1738802319640,0.10894924,96952.0,96951.0,0.08384001]
[1738802319892,0.0044173,96979.0,96978.0,0.237374]
[1738802321194,0.10692095,96979.0,96978.0,0.154674]
[1738802321389,0.10692095,96979.0,96978.0,0.156674]
[1738802321984,0.11532095,96979.0,96978.0,0.156674]
[1738802322661,0.11532095,96979.0,96978.0,0.154674]
[1738802323023,0.11532095,96979.0,96978.0,0.156674]
[1738802323295,0.11532095,96979.0,96978.0,0.154674]
[1738802323691,0.11532095,96979.0,96978.0,0.156674]
[1738802323948,0.10692095,96979.0,96978.0,0.156674]
[1738802324148,0.11532095,96979.0,96978.0,0.156674]
[1738802324571,0.11532095,96979.0,96978.0,0.002]
[1738802326249,0.11532095,96979.0,96977.0,0.154675]
[1738802326486,0.10250365,96978.0,96977.0,0.154675]
[1738802326671,0.10250365,96978.0,96975.0,0.154677]
[1738802326917,0.10250365,96978.0,96976.0,0.154676]
[1738802327158,0.0115321,96977.0,96976.0,0.154676]
[1738802327349,0.11403575,96977.0,96976.0,0.154676]
[1738802327899,0.10250365,96977.0,96975.0,0.154678]
[1738802328109,0.10250365,96976.0,96969.0,0.154688]
[1738802328330,0.10250365,96974.0,96968.0,0.154688]
[1738802328731,0.25718665,96973.0,96963.0,0.206264]
[1738802328976,0.25718665,96973.0,96965.0,0.154693]
[1738802329190,0.0476239,96972.0,96967.0,0.15469]
[1738802329473,0.10250365,96971.0,96967.0,0.15469]
[1738802329766,0.10250365,96971.0,96962.0,0.206266]
[1738802329993,0.10250365,96971.0,96963.0,0.002]
[1738802330126,0.10250365,96971.0,96965.0,0.154694]
[1738802330315,0.10250365,96971.0,96949.0,0.206293]
[1738802330316,0.10250365,96971.0,96969.0,0.154688]
[1738802331761,0.10250365,96971.0,96969.0,0.15491228]
[1738802332102,0.10250365,96971.0,96970.0,0.154687]
[1738802332681,0.10350365,96971.0,96970.0,0.154687]
[1738802333414,0.10350365,96971.0,96969.0,0.00022428]
[1738802333415,0.10450365,96971.0,96969.0,0.00022428]
[1738802333810,0.11095061,96971.0,96969.0,0.00022428]
[1738802334931,0.00644696,96970.0,96969.0,0.00022428]
[1738802335131,0.10895061,96970.0,96969.0,0.00022428]
[1738802335716,0.10895061,96970.0,96969.0,0.15491228]
[1738802336466,0.10995061,96970.0,96969.0,0.15491228]
[1738802337282,0.10995061,96970.0,96969.0,0.00022428]
[1738802337489,0.12094567,96970.0,96969.0,0.00022428]
[1738802340128,0.10995061,96970.0,96969.0,0.00022428]
[1738802340635,0.12026634,96970.0,96968.0,0.10849247]
[1738802340966,0.12026634,96970.0,96967.0,0.15469]
[1738802340967,0.10250365,96969.0,96967.0,0.15469]
[1738802341141,0.01776269,96970.0,96956.0,0.0116004]
[1738802341142,0.10250365,96968.0,96956.0,0.0116004]
[1738802341479,0.10250365,96957.0,96940.0,0.14295387]
[1738802341654,0.10250365,96956.0,96947.0,0.14295387]
[1738802341852,0.10250365,96956.0,96954.0,0.154711]
[1738802342056,0.10250365,96956.0,96953.0,0.154713]
[1738802342295,0.12822431,96956.0,96953.0,0.154713]
[1738802342495,0.00644696,96955.0,96951.0,0.15508008]
[1738802342690,0.10250365,96954.0,96951.0,0.00036408]
[1738802342893,0.10250365,96954.0,96952.0,0.154715]
[1738802343248,0.00644696,96953.0,96951.0,0.00036408]
[1738802343466,0.10250365,96952.0,96951.0,0.00036408]
[1738802344095,0.10895061,96952.0,96951.0,0.00036408]
[1738802344272,0.14949771,96952.0,96951.0,0.00036408]
[1738802344479,0.30421271,96952.0,96951.0,0.00036408]
[1738802344681,0.31066159,96952.0,96951.0,0.00036408]
[1738802345271,0.46066159,96952.0,96951.0,0.00036408]
[1738802345475,0.46166159,96952.0,96951.0,0.00036408]
[1738802345954,0.46066159,96952.0,96951.0,0.00036408]
[1738802346151,0.46466159,96952.0,96951.0,0.00036408]
[1738802347236,0.41766753,96952.0,96951.0,0.00036408]
[1738802348040,0.154737,96939.0,96932.0,0.154746]
[1738802348241,0.10250365,96938.0,96932.0,0.15488615]
[1738802348443,0.01044888,96952.0,96950.0,0.154717]
[1738802348637,0.09199208,96959.0,96958.0,0.177706]
[1738802348839,0.09199208,96959.0,96958.0,0.327706]
[1738802349157,0.19449573,96959.0,96958.0,0.177706]
[1738802349357,0.20289573,96959.0,96958.0,0.177706]
[1738802350206,0.20289573,96959.0,96958.0,0.179706]
[1738802350832,0.2231853,96959.0,96958.0,0.179706]
[1738802351229,0.20289573,96959.0,96958.0,0.025]
[1738802351543,0.20289573,96959.0,96958.0,0.002]
[1738802351750,0.11090365,96959.0,96958.0,0.002]
[1738802352573,0.11090365,96959.0,96951.0,0.023]
[1738802352735,0.10250365,96958.0,96954.0,0.154712]
[1738802352935,0.10250365,96958.0,96955.0,0.154709]
[1738802353137,0.10250365,96958.0,96956.0,0.154708]
[1738802353815,0.10250365,96958.0,96955.0,0.154709]
[1738802354019,0.10250365,96958.0,96956.0,0.154708]
[1738802354211,0.10250365,96958.0,96954.0,0.154711]
[1738802354428,0.02656037,96957.0,96953.0,0.229284]
[1738802354584,0.10250365,96956.0,96955.0,0.15471]
[1738802355776,0.10450365,96956.0,96955.0,0.15471]
[1738802356560,0.11090365,96956.0,96955.0,0.17771]
[1738802357714,0.10250365,96956.0,96955.0,0.17771]
[1738802357915,0.0001068,96968.0,96967.0,0.256791]
[1738802358153,0.11101045,96968.0,96967.0,0.256791]
[1738802359196,0.11101045,96968.0,96967.0,0.25693115]
[1738802359548,0.11601045,96968.0,96967.0,0.25693115]
[1738802359816,0.11601045,96968.0,96967.0,0.17783115]
[1738802361889,0.12245686,96968.0,96967.0,0.17783115]
[1738802362803,0.11601045,96968.0,96967.0,0.17783115]
[1738802366285,0.11601045,96968.0,96967.0,0.32783115]
[1738802367245,0.0051068,96968.0,96967.0,0.45025816]
[1738802367450,0.0051068,96968.0,96967.0,0.37503115]
[1738802368326,0.0001068,96968.0,96967.0,0.37503115]
[1738802368619,0.0001068,96968.0,96967.0,0.37803115]
[1738802368745,0.0001068,96968.0,96967.0,0.37503115]
[1738802369195,0.0001068,96968.0,96967.0,0.37803115]
[1738802371178,1e-08,96978.0,96977.0,0.177675]
[1738802371465,1e-08,96978.0,96977.0,0.406475]
[1738802372538,0.0045241,96979.0,96978.0,0.023]
[1738802372744,0.0045241,96979.0,96978.0,0.17870494]
[1738802374891,0.0045241,96979.0,96978.0,0.18070494]
[1738802375269,0.0045241,96979.0,96978.0,0.19034063]
[1738802375429,0.0045241,96979.0,96978.0,0.19234063]
[1738802375632,0.0045241,96979.0,96978.0,0.25087407]
[1738802375946,0.0045241,96979.0,96978.0,0.24984313]
[1738802378629,0.0045241,96979.0,96978.0,0.35130969]
[1738802379905,0.0045241,96979.0,96978.0,0.34130969]
[1738802381328,4.944143,97000.0,96999.0,0.0869]